bitfinex-derivatives/quotes_ETHF0:USTF0_20210109
["timestamp","ask_amount","ask_price","bid_price","bid_amount"]
[1610195888188,40.73906257,1216.1,1215.3,47.1475]
[1610195888389,40.75812473,1216.2,1215.3,97.1475]
[1610195888589,40.75812473,1216.2,1215.4,50.0]
[1610195888790,40.76738589,1216.3,1215.4,50.0]
[1610195888989,40.76738589,1216.3,1215.5,50.0]
[1610195889192,40.78284517,1216.4,1215.5,52.2079]
[1610195889590,40.83031846,1216.7,1215.5,52.2079]
[1610195889991,40.83031846,1216.7,1215.8,53.0698]
[1610195890192,40.83031846,1216.7,1215.8,55.0712]
[1610195890394,4.00959,1216.1,1215.9,4.00959]
[1610195890594,4.00959,1216.1,1215.9,54.00959]
[1610195890998,4.00959,1216.1,1215.9,4.00959]
[1610195891195,4.00959,1216.1,1216.0,50.0]
[1610195891797,40.88035953,1217.0,1216.0,50.0]
[1610195891996,40.89597735,1217.1,1216.1,49.6538]
[1610195892194,30.6744144,1217.1,1216.1,101.7823]
[1610195892397,4.00959,1217.0,1216.9,4.00959]
[1610195893595,4.00959,1217.0,1216.7,54.2349]
[1610195894396,4.00959,1216.8,1216.7,54.2349]
[1610195896097,4.00959,1216.8,1216.7,104.2349]
[1610195897698,4.00959,1216.8,1216.7,50.0]
[1610195898298,4.00959,1216.8,1216.6,50.0]
[1610195898698,4.00959,1216.8,1216.5,50.0]
[1610195898900,34.00959,1216.8,1216.5,50.0]
[1610195899099,34.00959,1216.8,1216.2,50.0]
[1610195899400,34.00959,1216.8,1216.3,50.0]
[1610195899700,34.00959,1216.8,1216.1,2.1285]
[1610195899900,4.00959,1216.8,1215.9,53.6234]
[1610195900300,4.00959,1216.8,1216.2,50.0]
[1610195900500,40.82796518,1217.0,1216.2,2.5941]
[1610195900901,40.82796518,1217.0,1216.3,50.0]
[1610195901104,70.82796518,1217.0,1216.3,50.0]
[1610195901504,70.82796518,1217.0,1216.4,50.0]
[1610195901903,40.7924634,1216.9,1216.3,50.0]
[1610195902102,30.0,1216.8,1216.3,50.0]
[1610195902302,70.78791562,1216.8,1216.3,50.0]
[1610195902504,4.00959,1216.4,1216.3,50.0]
[1610195902905,4.00959,1216.4,1216.2,52.5941]
[1610195903105,34.00959,1216.4,1216.2,52.5941]
[1610195903306,34.00959,1216.4,1216.2,2.5941]
[1610195904505,47.2758,1216.2,1215.9,50.0]
[1610195904708,30.0,1216.1,1215.8,52.0014]
[1610195905108,30.0,1216.1,1215.8,2.0014]
[1610195905313,30.0,1216.1,1215.6,50.0]
[1610195905510,87.96782222,1216.2,1215.9,50.0]
[1610195905712,40.69202222,1216.2,1215.9,50.0]
[1610195906112,42.31682222,1216.2,1215.6,50.0]
[1610195906312,1.6248,1216.2,1215.6,50.0]
[1610195906513,4.00959,1215.7,1215.6,50.0]
[1610195906714,4.00959,1215.7,1215.5,2.2079]
[1610195906913,4.00959,1215.7,1215.6,50.0]
[1610195907113,4.00959,1215.7,1215.6,52.1972]
[1610195907314,12.59088689,1216.5,1215.6,52.1972]
[1610195907315,40.72623574,1216.5,1215.6,52.1972]
[1610195907715,40.74174282,1216.6,1215.6,3.45378337]
[1610195908113,40.74174282,1216.6,1215.7,50.0]
[1610195908314,88.21366546,1216.7,1215.7,50.0]
[1610195908515,4.00959,1215.8,1215.6,3.45378337]
[1610195909116,4.00959,1215.8,1215.7,50.0]
[1610195909514,4.00959,1215.8,1215.7,51.25644437]
[1610195918025,40.65418091,1216.8,1215.7,51.25644437]
[1610195918223,40.65418091,1216.8,1215.7,100.89144437]
[1610195918423,40.67218946,1216.9,1215.8,50.0]
[1610195918624,4.00959,1216.0,1215.8,50.0]
[1610195918828,4.00959,1216.0,1215.9,50.0]
[1610195919027,4.00959,1216.0,1215.9,53.08875139]
[1610195919527,4.00959,1216.0,1215.9,3.08875139]
[1610195919928,4.00959,1216.0,1215.9,53.08875139]
[1610195922535,1.6678,1216.4,1215.9,53.08875139]
[1610195922536,4.00959,1216.3,1215.9,53.08875139]
[1610195922934,4.00959,1216.3,1216.0,50.0]
[1610195923336,4.00959,1216.3,1216.1,50.0]
[1610195923534,4.00959,1216.3,1215.9,3.08875139]
[1610195923734,4.00959,1216.3,1216.2,50.0]
[1610195924135,4.00959,1216.3,1216.2,1.6225]
[1610195924335,4.00959,1216.3,1216.2,51.6225]
[1610195925036,4.00959,1216.3,1216.2,52.87863772]
[1610195934740,4.00959,1216.3,1216.2,56.88822772]
[1610195936142,4.00959,1216.3,1216.2,52.87863772]
[1610195938244,40.79842008,1217.2,1216.2,52.87863772]
[1610195938446,40.83083706,1217.3,1216.3,48.2594]
[1610195938644,40.83083706,1217.3,1216.6,4.00959]
[1610195938845,40.84018429,1217.4,1216.3,98.2594]
[1610195939044,40.84018429,1217.4,1216.6,2.253]
[1610195939646,40.84018429,1217.4,1216.7,50.0]
[1610195940248,40.84018429,1217.4,1216.8,50.0]
[1610195940646,4.00959,1216.9,1216.8,51.25567011]
[1610195940847,4.00959,1216.9,1216.8,1.25567011]
[1610195941850,12.09209,1216.9,1216.8,1.25567011]
[1610195942048,12.09209,1216.9,1216.6,2.253]
[1610195942648,13.72439,1216.9,1216.8,50.0]
[1610195943248,12.09209,1216.9,1216.8,50.0]
[1610195943450,15.1075299,1216.9,1216.8,50.0]
[1610195943648,15.1075299,1216.9,1216.7,50.0]
[1610195943849,20.13333467,1216.9,1216.7,50.0]
[1610195944050,12.09209,1216.9,1216.8,50.0]
[1610195944249,13.73999,1216.9,1216.8,50.0]
[1610195944451,21.78138461,1216.9,1216.8,50.0]
[1610195944849,45.53851592,1216.9,1216.8,50.0]
[1610195945049,16.26628284,1216.9,1216.8,50.0]
[1610195945249,16.26628284,1216.9,1216.7,50.0]
[1610195945449,15.49059079,1216.9,1216.7,50.0]
[1610195945849,12.09209,1216.9,1216.8,50.0]
[1610195946051,13.71799,1216.9,1216.8,50.0]
[1610195946450,13.71799,1216.9,1216.7,50.0]
[1610195946653,12.09209,1216.9,1216.7,50.0]
[1610195947056,12.09209,1216.9,1216.8,50.0]
[1610195947651,13.74739,1216.9,1216.7,50.0]
[1610195947851,54.51865587,1216.9,1216.7,50.0]
[1610195948055,54.51865587,1216.9,1216.8,50.0]
[1610195948252,12.09209,1216.9,1216.8,50.0]
[1610195949052,12.09209,1216.9,1216.7,50.0]
[1610195949555,52.86386213,1216.9,1216.7,50.0]
[1610195949754,52.86386213,1216.9,1216.8,50.0]
[1610195953259,12.09209,1216.9,1216.8,50.0]
[1610195957662,4.00959,1216.9,1216.8,50.0]
[1610195959466,4.00959,1216.9,1216.8,51.25584275]
[1610195968969,12.67664858,1217.6,1216.8,51.25584275]
[1610195968970,53.67258345,1217.6,1216.8,51.25584275]
[1610195969369,40.99593487,1217.6,1216.8,51.25584275]
[1610195969770,25.74031082,1217.7,1216.9,50.0]
[1610195969771,53.69253554,1217.7,1216.9,50.0]
[1610195969972,53.69253554,1217.7,1216.9,52.3316]
[1610195970374,60.3571,1217.5,1217.0,50.0]
[1610195970775,4.00959,1217.2,1217.1,50.0]
[1610195970976,4.00959,1217.2,1217.0,4.00959]
[1610195971576,4.00959,1217.2,1217.1,50.0]
[1610195975079,4.00959,1217.2,1217.1,51.25564208]
[1610195976380,4.00959,1217.2,1217.1,50.0]
[1610195983688,51.7908,1217.8,1217.1,50.0]
[1610195983888,53.71115483,1218.0,1217.1,50.0]
[1610195984088,53.71115483,1218.0,1217.2,104.0184]
[1610195984289,53.71115483,1218.0,1217.2,105.8011]
[1610195984490,53.71115483,1218.0,1217.2,55.8011]
[1610195984690,41.04083883,1218.0,1217.2,55.8011]
[1610195984890,53.75897634,1218.1,1217.6,11.56289]
[1610195985089,2.67919268,1217.9,1217.6,13.22409]
[1610195985290,2.67919268,1217.9,1217.7,50.0]
[1610195986293,2.67919268,1217.9,1217.8,50.0]
[1610195986491,2.67912894,1218.0,1217.8,50.0]
[1610195986892,4.00959,1217.9,1217.8,50.0]
[1610195987093,4.00959,1217.9,1217.7,50.0]
[1610195987292,4.00959,1217.9,1217.8,50.0]
[1610195988295,29.97208326,1217.9,1217.8,50.0]
[1610195988494,29.97208326,1217.9,1217.6,1.6612]
[1610195988495,45.05951824,1217.9,1217.7,50.0]
[1610195988896,45.05951824,1217.9,1217.8,50.0]
[1610195989094,57.75153768,1217.9,1217.8,50.0]
[1610195989495,60.43066468,1217.9,1217.7,50.0]
[1610195990096,47.73864524,1217.9,1217.8,50.0]
[1610195990296,6.688717,1217.9,1217.8,50.0]
[1610195990498,6.688717,1217.9,1217.7,50.0]
[1610195990901,4.00959,1217.9,1217.7,50.0]
[1610195991801,4.00959,1217.9,1217.8,50.0]
[1610195992502,4.00959,1217.9,1217.7,50.0]
[1610195992902,4.00959,1217.9,1217.6,74.41909]
[1610195993103,4.00959,1217.9,1217.8,50.0]
[1610195993502,4.00959,1217.9,1217.7,50.0]
[1610195993901,4.00959,1217.9,1217.8,50.0]
[1610195994502,4.00959,1217.9,1217.8,63.2775]
[1610195994902,4.00959,1217.9,1217.8,117.28709]
[1610196000708,4.00959,1217.9,1217.8,113.2775]
[1610196001309,4.00959,1217.9,1217.8,50.0]
[1610196002910,5.64429,1217.9,1217.8,50.0]
[1610196003718,4.00959,1217.9,1217.8,50.0]
[1610196005922,5.64939,1217.9,1217.8,50.0]
[1610196006323,4.00959,1217.9,1217.8,50.0]
[1610196007324,5.66329,1217.9,1217.8,50.0]
[1610196007725,4.00959,1217.9,1217.8,50.0]
[1610196008727,5.65589,1217.9,1217.8,50.0]
[1610196009130,4.00959,1217.9,1217.8,50.0]
[1610196013835,4.00959,1217.9,1217.7,50.0]
[1610196014434,45.23794541,1217.9,1217.7,50.0]
[1610196014635,45.23794541,1217.9,1217.8,50.0]
[1610196015034,52.88224541,1217.9,1217.7,50.0]
[1610196015435,52.88224541,1217.9,1217.8,50.0]
[1610196015834,52.88224541,1217.9,1217.7,50.0]
[1610196016033,82.88224541,1217.9,1217.7,50.0]
[1610196016535,95.60436351,1217.9,1217.7,50.0]
[1610196016935,95.60436351,1217.9,1217.6,51.6612]
[1610196017336,95.60436351,1217.9,1217.6,1.6612]
[1610196017536,95.60436351,1217.9,1217.2,59.2171]
[1610196017735,41.10203413,1217.8,1217.6,50.0]
[1610196017935,30.0,1217.7,1217.6,50.0]
[1610196018236,30.0,1217.7,1217.2,1.7827]
[1610196018436,71.0862294,1217.7,1216.9,2.3316]
[1610196018839,71.0862294,1217.7,1216.7,53.2783]
[1610196018840,71.0862294,1217.7,1217.6,50.0]
[1610196019035,32.77979236,1217.7,1216.7,53.2783]
[1610196019235,32.77979236,1217.7,1217.0,1.7876]
[1610196019437,41.02154534,1217.6,1217.0,1.7876]
[1610196019638,71.02154534,1217.6,1217.0,1.7876]
[1610196020038,60.2399,1217.4,1217.0,1.7876]
[1610196020740,90.2399,1217.4,1217.0,1.7876]
[1610196020940,30.0,1217.4,1217.1,50.0]
[1610196021340,30.0,1217.4,1217.0,51.7876]
[1610196021540,30.0,1217.4,1217.0,1.7876]
[1610196021741,70.97987553,1217.4,1217.0,1.7876]
[1610196021941,40.96896833,1217.3,1216.9,50.0]
[1610196022142,30.0,1217.2,1216.9,50.0]
[1610196022945,40.93402946,1217.1,1216.9,50.0]
[1610196023143,4.00959,1217.0,1216.9,50.0]
[1610196023343,34.00959,1217.0,1216.9,50.0]
[1610196023542,4.00959,1217.0,1216.8,50.0]
[1610196024143,4.00959,1217.0,1216.7,50.0]
[1610196024746,30.0,1216.9,1216.7,50.0]
[1610196025044,4.00959,1216.8,1216.7,50.0]
[1610196025246,34.00959,1216.8,1216.7,50.0]
[1610196026345,42.59979,1216.8,1216.7,50.0]
[1610196027351,42.59979,1216.8,1216.6,52.253]
[1610196027551,12.59979,1216.8,1216.6,52.253]
[1610196027754,12.59979,1216.8,1216.7,50.0]
[1610196030555,42.59979,1216.8,1216.7,50.0]
[1610196032161,42.58195006,1216.8,1216.7,50.0]
[1610196032560,33.99175006,1216.8,1216.7,50.0]
[1610196033161,61.4553,1216.7,1216.6,2.253]
[1610196033361,91.4553,1216.7,1216.3,1.6516]
[1610196035264,4.00959,1216.4,1216.3,1.6516]
[1610196035462,4.00959,1216.4,1215.9,59.1085]
[1610196035864,4.00959,1216.4,1216.2,50.0]
[1610196036466,34.00959,1216.4,1216.0,1.5971]
[1610196036667,98.77819,1216.4,1216.0,1.5971]
[1610196037370,4.00959,1216.1,1216.0,1.5971]
[1610196038569,4.00959,1216.1,1216.0,51.5971]
[1610196039068,4.00959,1216.1,1216.0,52.85359432]
[1610196041274,4.00959,1216.1,1216.0,2.85359432]
[1610196041876,4.00959,1216.1,1216.0,52.85359432]
[1610196042675,4.00959,1216.1,1216.0,51.5971]
[1610196043075,4.00959,1216.1,1216.0,52.85356425]
[1610196044982,11.55839,1216.1,1216.0,52.85356425]
[1610196045380,4.00959,1216.1,1216.0,52.85356425]
[1610196045979,4.00959,1216.1,1216.0,2.85356425]
[1610196046180,4.00959,1216.1,1216.0,1.25646425]
[1610196046380,4.00959,1216.1,1216.0,51.25646425]
[1610196046779,4.00959,1216.1,1216.0,1.25646425]
[1610196047381,34.00959,1216.1,1216.0,1.25646425]
[1610196048784,4.00959,1216.1,1216.0,1.25646425]
[1610196048984,4.00959,1216.1,1215.9,50.0]
[1610196049185,34.00959,1216.1,1215.9,50.0]
[1610196049986,4.00959,1216.1,1215.9,50.0]
[1610196050386,6.06789,1216.1,1216.0,50.0]
[1610196050586,14.36979,1216.1,1216.0,50.0]
[1610196050786,14.36979,1216.1,1215.4,50.0]
[1610196051388,4.00959,1215.5,1215.3,2.4628]
[1610196052189,4.00959,1215.5,1215.4,50.0]
[1610196053194,4.00959,1215.5,1215.4,51.25693099]
[1610196054095,11.08509,1215.5,1215.4,51.25693099]
[1610196054292,4.00959,1215.5,1215.4,51.25693099]
[1610196055495,4.00959,1215.5,1215.4,1.25693099]
[1610196056496,34.00959,1215.5,1215.4,1.25693099]
[1610196056696,4.00959,1215.5,1215.2,50.0]
[1610196057096,51.1823,1215.2,1214.9,50.0]
[1610196057296,4.00959,1215.0,1214.9,50.0]
[1610196057496,4.00959,1215.0,1214.8,50.0]
[1610196057696,63.3098,1214.9,1214.8,50.0]
[1610196058299,63.3098,1214.9,1214.2,62.044]
[1610196058498,4.00959,1215.0,1214.8,1.2574388]
[1610196059497,34.00959,1215.0,1214.8,1.2574388]
[1610196059897,34.00959,1215.0,1214.5,1.25801109]
[1610196060098,74.63595071,1215.0,1214.5,1.25801109]
[1610196060498,47.06101696,1214.9,1214.5,1.25801109]
[1610196060698,12.54313334,1214.7,1214.1,50.0]
[1610196060902,30.0,1214.6,1214.1,50.0]
[1610196061099,30.0,1214.6,1214.0,50.0]
[1610196061100,40.53450145,1214.3,1214.0,50.0]
[1610196061298,62.40839,1214.1,1214.0,50.0]
[1610196061498,4.00959,1214.1,1214.0,50.0]
[1610196061699,34.00959,1214.1,1214.0,50.0]
[1610196061900,4.00959,1214.1,1214.0,50.0]
[1610196062100,44.50646173,1214.1,1214.0,50.0]
[1610196062500,20.13005162,1214.1,1214.0,50.0]
[1610196062700,32.64576264,1214.1,1214.0,50.0]
[1610196063000,20.13005162,1214.1,1214.0,50.0]
[1610196063403,7.03217655,1214.1,1214.0,50.0]
[1610196063802,44.48650566,1214.1,1214.0,50.0]
[1610196064000,4.00959,1214.1,1214.0,50.0]
[1610196065605,4.00959,1214.1,1213.6,53.9373]
[1610196067303,40.52913685,1214.5,1213.7,1.25882098]
[1610196067504,40.52123543,1214.4,1213.7,1.25882098]
[1610196068505,40.52123543,1214.4,1213.6,53.9373]
[1610196068705,40.52123543,1214.4,1213.4,50.0]
[1610196068906,40.53636553,1214.5,1213.4,50.0]
[1610196069305,40.53636553,1214.5,1213.7,50.0]
[1610196069506,40.52161385,1214.4,1213.7,50.0]
[1610196070306,40.52161385,1214.4,1213.8,50.0]
[1610196070507,40.55281031,1214.6,1213.8,52.2964]
[1610196070706,40.56089296,1214.7,1213.8,52.2964]
[1610196071108,40.54826511,1214.6,1213.8,2.2964]
[1610196071307,4.00959,1213.9,1213.8,2.2964]
[1610196072407,4.00959,1213.9,1213.8,52.2964]
[1610196074513,4.00959,1213.9,1213.8,2.2964]
[1610196074913,4.00959,1213.9,1213.5,50.0]
[1610196075114,4.00959,1213.9,1213.4,50.0]
[1610196075315,4.00959,1213.5,1213.4,50.0]
[1610196075514,4.00959,1213.5,1212.9,63.8545]
[1610196075914,4.00959,1213.5,1213.4,50.0]
[1610196076114,4.00959,1213.5,1213.0,50.0]
[1610196076115,4.00959,1213.5,1213.0,51.7232]
[1610196076315,4.00959,1213.5,1213.0,1.7232]
[1610196076514,4.00959,1213.5,1213.1,50.0]
[1610196076716,30.0,1213.4,1213.1,50.0]
[1610196077115,32.2926,1213.4,1213.1,50.0]
[1610196077316,32.2926,1213.4,1211.4,0.50390664]
[1610196077317,52.7939,1213.1,1211.4,0.25199197]
[1610196077518,52.7939,1213.1,1211.3,0.25211481]
[1610196077519,30.0,1213.0,1211.3,0.25211481]
[1610196077717,66.1325,1212.3,1211.3,0.25211481]
[1610196077920,66.1325,1212.3,1211.1,0.2520871]
[1610196078120,66.1325,1212.3,1211.0,0.25209955]
[1610196078318,66.1325,1212.3,1211.5,1.26051411]
[1610196078521,66.1325,1212.3,1211.5,3.56401411]
[1610196079422,66.1325,1212.3,1211.7,50.0]
[1610196079624,66.1325,1212.3,1211.5,51.26051411]
[1610196079825,68.1673,1212.3,1211.6,1.26075622]
[1610196081325,68.1673,1212.3,1211.2,1.26076076]
[1610196081528,4.00959,1211.7,1211.2,1.26076076]
[1610196081728,67.3267,1211.4,1211.2,1.26076076]
[1610196082527,67.3267,1211.4,1211.1,2.5712]
[1610196082727,4.00959,1211.7,1211.1,2.5712]
[1610196083528,4.00959,1211.2,1211.1,2.5712]
[1610196084728,4.00959,1211.2,1210.3,0.25218669]
[1610196085527,6.1945,1212.2,1210.6,4.00959]
[1610196085728,42.08340244,1212.3,1210.6,5.92659]
[1610196086328,1.9692,1212.3,1210.6,5.92659]
[1610196086735,40.15304414,1212.6,1210.6,6.17875476]
[1610196086931,40.15304414,1212.6,1211.0,49.031]
[1610196087130,40.17420574,1212.7,1211.0,51.3145]
[1610196087530,4.00959,1212.3,1212.1,4.00959]
[1610196087731,4.00959,1212.3,1212.0,52.1935]
[1610196088332,40.23503576,1213.1,1212.0,52.1935]
[1610196088532,40.25026916,1213.2,1212.0,54.1304]
[1610196089133,40.30693677,1213.3,1212.2,50.0]
[1610196089537,4.00959,1212.7,1212.4,3.99092301]
[1610196089937,40.3996893,1213.5,1212.4,3.99092301]
[1610196090137,11.9229523,1213.5,1212.5,66.218]
[1610196090337,40.45603216,1213.7,1212.5,66.218]
[1610196090940,40.48293234,1213.8,1212.5,66.218]
[1610196091141,40.48293234,1213.8,1212.6,1.25971961]
[1610196091545,40.48293234,1213.8,1212.9,4.00959]
[1610196091741,40.48293234,1213.8,1212.9,6.28859]
[1610196092341,40.48293234,1213.8,1212.9,2.279]
[1610196092542,40.50376551,1213.9,1212.9,2.279]
[1610196092846,40.50376551,1213.9,1213.0,50.0]
[1610196093243,40.47970313,1213.8,1213.0,50.0]
[1610196093442,4.00959,1213.1,1212.9,2.279]
[1610196095243,4.00959,1213.1,1213.0,1.25956519]
[1610196096845,4.00959,1213.1,1213.0,2.88366519]
[1610196097844,40.50818573,1214.0,1213.0,2.88366519]
[1610196098046,102.52431558,1214.1,1213.0,2.88366519]
[1610196098647,62.0115,1214.1,1213.0,2.88366519]
[1610196099448,4.00959,1213.4,1213.1,5.26882205]
[1610196099649,62.0115,1214.1,1213.1,5.26882205]
[1610196100656,62.0115,1214.1,1213.2,1.25888967]
[1610196100849,46.81527735,1214.5,1213.2,3.32738967]
[1610196101050,40.59157735,1214.5,1213.2,3.32738967]
[1610196101450,4.00959,1213.5,1213.4,4.00959]
[1610196101650,4.00959,1213.5,1213.4,5.65709]
[1610196102550,40.15747735,1214.5,1213.4,5.65709]
[1610196102950,31.8988983,1214.5,1213.4,5.65709]
[1610196103150,38.6771225,1214.6,1213.4,5.65709]
[1610196103551,38.6771225,1214.6,1213.6,4.00959]
[1610196103750,38.6771225,1214.6,1213.6,7.84139]
[1610196103950,38.6771225,1214.6,1213.7,50.0]
[1610196104351,38.6771225,1214.6,1213.8,50.0]
[1610196104552,38.69254432,1214.7,1213.8,50.0]
[1610196104751,38.69254432,1214.7,1213.6,7.84139]
[1610196105151,38.69254432,1214.7,1213.9,50.0]
[1610196105551,4.00959,1214.0,1213.9,1.7718]
[1610196105754,2.37959,1214.0,1213.9,1.7718]
[1610196106154,2.37959,1214.0,1213.9,51.7718]
[1610196106555,2.37959,1214.0,1213.9,53.03025185]
[1610196106754,2.13419,1214.0,1213.9,53.03025185]
[1610196107155,0.52419,1214.0,1213.9,53.03025185]
[1610196107354,38.37493445,1214.8,1213.9,53.03025185]
[1610196107557,38.37493445,1214.8,1214.0,4.00959]
[1610196107558,36.59493445,1214.8,1214.0,4.00959]
[1610196107756,35.03200492,1214.9,1214.0,54.00959]
[1610196108656,35.03200492,1214.9,1214.0,55.67769]
[1610196109056,30.62583595,1215.0,1214.0,55.67769]
[1610196109455,30.62583595,1215.0,1214.1,51.25822189]
[1610196109456,4.00959,1214.4,1214.1,51.25822189]
[1610196110055,4.00959,1214.4,1214.2,50.0]
[1610196110456,4.00959,1214.4,1214.3,50.0]
[1610196111056,30.57260959,1214.7,1214.3,50.0]
[1610196111455,13.09022278,1214.9,1214.2,1.6068]
[1610196111456,4.00959,1214.5,1214.2,1.6068]
[1610196111655,4.00959,1214.5,1214.4,50.0]
[1610196112055,30.58982534,1214.9,1214.4,50.0]
[1610196112956,38.49438797,1214.8,1214.4,50.0]
[1610196113455,4.00959,1214.5,1214.4,50.0]
[1610196113960,4.00959,1214.5,1214.3,50.0]
[1610196115157,4.00959,1214.5,1214.4,50.0]
[1610196115758,4.00959,1214.5,1214.2,1.6068]
[1610196115958,4.00959,1214.5,1213.9,1.7718]
[1610196116159,4.00959,1214.5,1214.3,50.0]
[1610196116359,4.00959,1214.5,1214.3,52.2333]
[1610196116559,4.00959,1214.5,1214.3,2.2333]
[1610196116759,4.00959,1214.5,1214.4,50.0]
[1610196122365,46.74590429,1214.8,1214.4,50.0]
[1610196122665,46.74590429,1214.8,1214.3,2.2333]
[1610196122666,7.9058,1214.8,1214.5,50.0]
[1610196123269,7.9058,1214.8,1214.4,50.0]
[1610196123470,4.00959,1214.7,1214.4,50.0]
[1610196123669,40.80286035,1214.9,1214.4,50.0]
[1610196123868,40.80286035,1214.9,1214.6,32.0]
[1610196124070,40.82825613,1215.0,1214.6,33.8741]
[1610196124268,40.82825613,1215.0,1214.6,1.8741]
[1610196124568,40.84648835,1215.1,1214.7,50.0]
[1610196125371,40.87442522,1215.3,1214.6,1.8741]
[1610196125570,40.90658765,1215.5,1215.2,4.00959]
[1610196125771,40.90658765,1215.5,1215.2,6.02759]
[1610196125970,40.90658765,1215.5,1215.2,2.018]
[1610196126572,40.90419521,1215.4,1215.2,2.018]
[1610196126772,40.90419521,1215.4,1215.3,50.0]
[1610196126973,53.55851718,1215.5,1215.3,50.0]
[1610196127374,40.90788558,1215.5,1215.4,50.0]
[1610196127575,44.91747558,1215.5,1215.4,50.0]
[1610196127777,44.91747558,1215.5,1215.3,50.0]
[1610196127975,44.91747558,1215.5,1215.4,50.0]
[1610196128276,44.91747558,1215.5,1215.2,2.018]
[1610196128277,44.91747558,1215.5,1215.3,50.0]
[1610196128577,4.00959,1215.5,1215.3,50.0]
[1610196128777,4.00959,1215.5,1215.4,50.0]
[1610196129476,4.00959,1215.5,1215.3,54.00959]
[1610196129676,4.00959,1215.5,1215.4,50.0]
[1610196137885,41.09828124,1215.6,1215.4,50.0]
[1610196138286,53.86299135,1215.8,1215.5,50.0]
[1610196138488,53.86299135,1215.8,1215.5,51.9834]
[1610196138687,41.13956564,1215.8,1215.5,1.9834]
[1610196139689,53.86748844,1215.8,1215.5,1.9834]
[1610196139888,53.91289951,1215.9,1215.6,50.0]
[1610196140290,57.93423112,1216.0,1215.6,50.0]
[1610196140791,53.92464112,1216.0,1215.6,50.0]
[1610196141692,57.93423112,1216.0,1215.9,4.00959]
[1610196141892,4.00959,1216.0,1215.9,4.00959]
[1610196142100,54.11705188,1216.1,1215.9,6.44509]
[1610196142491,54.11705188,1216.1,1215.9,56.44509]
[1610196142693,54.14365356,1216.2,1215.9,56.44509]
[1610196142893,54.1820267,1216.3,1215.9,56.44509]
[1610196143091,54.1820267,1216.3,1216.0,50.0]
[1610196143292,54.19308083,1216.4,1216.0,50.0]
[1610196143491,54.19308083,1216.4,1216.1,50.0]
[1610196143691,54.16231098,1216.5,1216.3,4.00959]
[1610196143895,54.16231098,1216.5,1216.3,6.60169]
[1610196144092,54.14453428,1216.6,1216.3,6.60169]
[1610196144291,54.14453428,1216.6,1216.4,50.0]
[1610196144292,28.65810061,1216.6,1216.4,50.0]
[1610196144492,54.12876788,1216.7,1216.4,50.0]
[1610196145093,54.03173631,1216.6,1216.5,50.0]
[1610196145493,54.03173631,1216.6,1216.4,50.0]
[1610196145695,4.00959,1216.5,1216.4,50.0]
[1610196146095,24.80658515,1216.5,1216.3,2.5921]
[1610196146295,19.77867248,1216.5,1216.3,2.5921]
[1610196146497,19.77867248,1216.5,1216.4,50.0]
[1610196146696,4.00959,1216.5,1216.4,50.0]
[1610196147096,7.02651644,1216.5,1216.4,50.0]
[1610196148197,19.79005282,1216.5,1216.4,50.0]
[1610196148599,7.02651644,1216.5,1216.4,50.0]
[1610196149000,7.02651644,1216.5,1216.3,50.0]
[1610196149399,7.02651644,1216.5,1216.0,50.0]
[1610196149599,4.00959,1216.1,1216.0,50.0]
[1610196149801,4.00959,1216.1,1215.9,2.4355]
[1610196150001,4.00959,1216.1,1215.5,51.4444]
[1610196150202,53.97650957,1216.0,1215.5,1.9834]
[1610196150404,53.97650957,1216.0,1215.4,4.00959]
[1610196150602,53.9554577,1215.9,1215.6,50.0]
[1610196150901,53.9554577,1215.9,1215.5,50.0]
[1610196151302,41.1985528,1215.8,1215.5,50.0]
[1610196151602,4.00959,1215.6,1215.5,50.0]
[1610196152002,4.00959,1215.6,1214.9,49.952]
[1610196152601,4.00959,1215.6,1215.5,50.0]
[1610196152801,4.00959,1215.6,1215.5,2.2125]
[1610196153704,4.00959,1215.6,1215.5,52.2125]
[1610196160108,12.75699239,1216.2,1215.5,52.2125]
[1610196160109,54.05821507,1216.2,1215.5,52.2125]
[1610196160508,54.05821507,1216.2,1215.6,50.0]
[1610196161109,54.05821507,1216.2,1215.7,50.0]
[1610196161509,41.30122268,1216.2,1215.8,50.0]
[1610196161712,4.00959,1215.9,1215.8,52.0606]
[1610196161912,4.00959,1215.9,1215.8,2.0606]
[1610196162310,4.00959,1215.9,1215.8,52.0606]
[1610196169719,4.00959,1215.9,1215.8,56.07019]
[1610196170119,54.25122489,1216.3,1215.8,56.07019]
[1610196170319,14.78531611,1216.6,1215.8,56.07019]
[1610196170320,54.22451792,1216.4,1215.8,56.07019]
[1610196170520,54.24954175,1216.5,1215.9,50.0]
[1610196170922,54.26883031,1216.6,1216.0,50.0]
[1610196171221,54.26883031,1216.6,1215.9,50.0]
[1610196171522,54.26883031,1216.6,1216.0,50.0]
[1610196171721,4.00959,1216.4,1216.1,4.00959]
[1610196171922,4.00959,1216.4,1216.1,54.00959]
[1610196172124,4.00959,1216.4,1216.2,50.0]
[1610196172321,4.00959,1216.4,1216.2,51.7138]
[1610196172722,4.00959,1216.4,1216.3,50.0]
[1610196177629,4.00959,1216.4,1216.3,54.00959]
[1610196178327,4.00959,1216.4,1216.3,50.0]
[1610196181735,54.2789166,1216.5,1216.4,195.99041]
[1610196181935,27.85954681,1216.7,1216.4,195.99041]
[1610196182135,54.24856126,1216.5,1216.4,245.99041]
[1610196182337,54.24856126,1216.5,1216.4,195.99041]